Cogmind - Beta 16.1 @@@ ROGUE MODE // 2026.02.20 @ 15:04:54 // Winter2019/RPGLIKE Player: badjay Result: Destroyed by YX-4B6(R) with Subdweller Laser Performance ------------- Evolutions (0) 0 Regions Visited (2) 400 Robots Destroyed (41) 205 Value Destroyed (972) 972 Prototype IDs (3) 60 Alien Tech Used (0) 0 Bonus (0) 0 TOTAL SCORE: 1637 Bonus ------- None Cogmind --------- Core Integrity 0/600 Matter 290/300 Energy 172/200 System Corruption 0% Temperature Cool (6) Movement Flying (37) Location -10/Subcaves Parts ------- > --- POWER (1) -------- Subdweller Power Source > --- PROPULSION (2) --- Flight Unit Flight Unit > --- UTILITY (2) ------ Structural Scanner Seismic Detector > --- WEAPON (2) ------- Medium Laser Subdweller Laser > --- INVENTORY (0) ---- (None) Peak State ------------ > --- POWER ------------ Light Nuclear Core > --- PROPULSION ------- Flight Unit Flight Unit > --- UTILITY ---------- Structural Scanner Seismic Detector > --- WEAPON ----------- Medium Laser Subdweller Laser > --- INVENTORY -------- (None) [Rating: 10] Favorites ----------- Power Light Nuclear Core Engine Subdweller Power Source Power Core Light Nuclear Core Propulsion Flight Unit Flight Unit Flight Unit Utility Seismic Detector Device Seismic Detector Weapon Small Laser Energy Gun Small Laser Ballistic Cannon Improved Light Cannon Build | -11 -10 -10 ------- Run | Yrd Mat Sub Slots Evolved 3 | . 3 . Power . | . . . Propulsion 1 | . 1 . Utility 1 | . 1 . Weapon 1 | . 1 . Parts Attached 13 | 1 9 3 Power 2 | . 1 1 Engine 1 | . . 1 Core 1 | . 1 . Reactor . | . . . Propulsion 3 | . 2 1 Treads . | . . . Leg . | . . . Wheel . | . . . Hover . | . . . Flight 3 | . 2 1 Utility 3 | . 3 . Device 3 | . 3 . Storage . | . . . Processor . | . . . Hackware . | . . . Protection . | . . . Artifact . | . . . Weapon 5 | 1 3 1 Energy Gun 4 | 1 2 1 Energy Cannon . | . . . Ballistic Gun . | . . . Ballistic Cannon 1 | . 1 . Launcher . | . . . Special Weapon . | . . . Impact Weapon . | . . . Slashing Weapon . | . . . Piercing Weapon . | . . . Special Melee Weapon . | . . . Unidentified Prototypes . | . . . Parts Lost 1 | . . 1 Power 1 | . . 1 Propulsion . | . . . Utility . | . . . Weapon . | . . . Highest Loss Streak 1 | . . 1 To Critical Strikes . | . . . Average Backups . | . . . Power . | . . . Propulsion . | . . . Utility . | . . . Weapon . | . . . Tool/Special . | . . . Unused Backups . | . . . Power . | . . . Propulsion . | . . . Utility . | . . . Weapon . | . . . Tool/Special . | . . . Average Slot Usage (%) 89 | . 85 98 Core 10 | . 10 10 Flight 20 | . 16 28 Device 22 | . 20 27 Energy Gun 34 | . 37 28 Peak Build Rating 10 | 1 9 10 Average Rating 6 | . 5 9 On Entrance 3 | . 1 9 Avg Prop Armor Cover (%) . | . . . Naked Turns . | . . . Heaviest Build 13 | 1 10 13 Greatest Support 13 | 3 13 13 Greatest Overweight (x) . | . . . Average Overweight (x) . | . . . Largest Inventory Capacity . | . . . Average Capacity . | . . . Most Carried . | . . . Average Carried . | . . . Final Capacity . | . . . Final Carried . | . . . Class Distribution -------------------- 96% | Hacker-Mutant 3% | Mutant Dominant Class ---------------- Hacker-Mutant | -10/Materials Hacker-Mutant | -10/Subcaves Resources | -11 -10 -10 ----------- Run | Yrd Mat Sub Matter Collected 350 | 210 100 40 Remotely . | . . . Salvage Created 1208 | . 968 240 Parts 66 | . 42 24 Haulers Intercepted 1 | . 1 . Recyclers Shooed . | . . . Parts Field Recycled . | . . . Retrieved Matter . | . . . Parts Self-Destructed 18 | . . 18 Prevented . | . . . Parts Restored . | . . . Kills | -11 -10 -10 ------- Run | Yrd Mat Sub Combat Hostiles Destroyed 29 | . 15 14 Guns 28 | . 14 14 AOE 1 | . 1 . Classes Destroyed 11 | . 8 3 Worker 2 | . 2 . Builder 3 | . 3 . Tunneler 2 | . 2 . Hauler 1 | . 1 . Recycler 1 | . 1 . Mechanic 1 | . 1 . Watcher 2 | . 2 . Swarmer 8 | . . 8 Grunt 16 | . 15 1 Sentry 1 | . . 1 Subdweller 4 | . . 4 Best Kill Streak 6 | . 6 4 Combat Bots Only 4 | . 4 4 Max Kills in Single Turn 2 | . 1 2 Gunslinging 1 | . . 1 Exploded 1 | . 1 . Melee . | . . . Uniques/NPCs Destroyed . | . . . Combat | -11 -10 -10 -------- Run | Yrd Mat Sub Hostile Shots Fired 217 | . 111 106 Missed 106 | . 49 57 Hits 111 | . 62 49 Projectile 111 | . 62 49 Critical Strikes 1 | . . 1 Damage Taken 1540 | . 766 774 Core 1299 | . 653 646 Absorbed by Shields . | . . . Redirected to Core 823 | . 373 450 Core Remaining (%) 100 | 100 . . Volleys Fired 160 | . 100 60 Largest 2 | . 2 2 Hottest 110 | . 90 110 Shots Fired 304 | . 198 106 Gun 304 | . 198 106 Cannon . | . . . Launcher . | . . . Special . | . . . Kinetic . | . . . Thermal 304 | . 198 106 Explosive . | . . . Electromagnetic . | . . . Robot Hit Streak 30 | . 11 30 Robot Miss Streak 5 | . 5 4 Penetration Max . | . . . Secondary Targets 2 | . 1 1 Max Gunslinging Chain 1 | . 1 1 Shots Hit Robots 198 | . 115 83 Core Hits 73 | . 52 21 Critical Kills . | . . . Critical Parts Destroyed 1 | . . 1 Critical Strikes 6 | . 2 4 Burn 5 | . 2 3 Destroy 1 | . . 1 Melee Attacks . | . . . Impact . | . . . Slashing . | . . . Piercing . | . . . Sneak Attacks . | . . . Combat Hostiles . | . . . Follow-up Attacks . | . . . Damage Inflicted 2767 | . 1605 1162 Guns 2545 | . 1383 1162 Cannons . | . . . Explosions 222 | . 222 . Melee . | . . . Ramming . | . . . Kinetic . | . . . Thermal 2545 | . 1383 1162 Explosive 222 | . 222 . Electromagnetic . | . . . Impact . | . . . Slashing . | . . . Piercing . | . . . Highest Corruption . | . . . Average Corruption . | . . . Corruption Purged . | . . . Corruption Blocked . | . . . Overload Shots . | . . . Overflow Damage 83 | . 83 . Projectiles . | . . . Explosions 83 | . 83 . Melee . | . . . Knockbacks . | . . . Impact . | . . . Kinetic . | . . . Secondary . | . . . Self-Inflicted Damage . | . . . Shots . | . . . Rammed . | . . . Targets Rammed . | . . . Kicked . | . . . Crushed . | . . . Highest Temperature 264 | . 264 16 Average Temperature 88 | . 97 6 Received Heat Transfer 561 | . 426 135 Effects 1 | . 1 . Energy Bleed 1 | . 1 . Siege Activations . | . . . Martial Activations . | . . . Shielding Activations . | . . . Robots Disrupted . | . . . Combat Hostiles . | . . . Robots Corrupted . | . . . Combat Hostiles . | . . . Parts Fried . | . . . Impact Corruptions . | . . . Robots Melted . | . . . Combat Hostiles . | . . . Parts Melted 11 | . 11 . Heat Transferred 6189 | . 3476 2713 Parts Sabotaged . | . . . Parts Stolen . | . . . Parts Stripped . | . . . Power Chain Reactions . | . . . Alert | -11 -10 -10 ------- Run | Yrd Mat Sub Maximum Alert Level 1 | . 1 . Low Security (%) 98 | 100 98 . Level 1 1 | . 1 . Level 2 . | . . . Level 3 . | . . . Level 4 . | . . . Level 5 . | . . . High Security . | . . . Max Security . | . . . Peak Influence 206 | . 206 . Initial . | . . . Average 87 | . 91 . Influence Increases 823 | . 553 270 Destroy 0b10 Robot/C 500 | . 300 200 Destroy 0b10 Robot/NC 60 | . 60 . Destroy Leader 86 | . 76 10 Successful Hack 28 | . 28 . Disable Machine 30 | . 30 . Destroy Structure 29 | . 29 . Lose Combat Pursuer 90 | . 30 60 Influence Decreases 639 | . 353 286 Entered New Map 96 | . . 96 Time Decay 533 | . 353 180 Lost Part 10 | . . 10 Squads Dispatched 4 | . 4 . Investigation 3 | . 3 . Extermination . | . . . Reinforcement 1 | . 1 . Assault . | . . . Garrison . | . . . Intercept . | . . . Searches Triggered . | . . . Construction Impeded . | . . . Haulers Reinforced . | . . . Active Scanning Responses . | . . . Cargo Convoy Interrupts . | . . . Stealth | -11 -10 -10 --------- Run | Yrd Mat Sub Distress Signals 1 | . 1 . Communications Jammed . | . . . Distress Signals . | . . . Times Spotted 43 | . 23 20 Peak Tracking Total 4 | . 4 4 Tactical Retreats 4 | . 2 2 Traps | -11 -10 -10 ------- Run | Yrd Mat Sub Traps Triggered 2 | . 2 . Indirectly . | . . . Trap Hack Attempts . | . . . Triggered . | . . . Disarmed . | . . . Reprogrammed . | . . . Reused . | . . . Traps Extracted . | . . . Installed . | . . . Triggered . | . . . Objects Rigged 4 | . 4 . Exploded 1 | . 1 . Machines | -11 -10 -10 ---------- Run | Yrd Mat Sub Machines Disabled 2 | . 2 . Max in Single Turn 2 | . 2 . Machines Repaired . | . . . Machines Dismantled . | . . . Machines Sabotaged . | . . . Overloaded Fab Kills . | . . . Hacking | -11 -10 -10 --------- Run | Yrd Mat Sub Machines Accessed 7 | . 7 . Terminals 7 | . 7 . Fabricators . | . . . Repair Stations . | . . . Recycling Units . | . . . Scanalyzers . | . . . Garrison Access . | . . . Total Hacks 35 | . 35 . Successful 22 | . 22 . Failed 13 | . 13 . Catastrophic 1 | . 1 . Database Lockouts . | . . . Manual 26 | . 26 . Terminals 35 | . 35 . Fabricators . | . . . Repair Stations . | . . . Recycling Units . | . . . Scanalyzers . | . . . Garrison Access . | . . . Terminal Hacks 8 | . 8 . Robot Analysis 1 | . 1 . Prototype ID Bank 2 | . 2 . Alert Level 1 | . 1 . Hauler Manifests 1 | . 1 . Zone Layout 3 | . 3 . Fabricator Hacks . | . . . Repair Station Hacks . | . . . Recycling Unit Hacks . | . . . Scanalyzer . | . . . Garrison Access Hacks . | . . . Unauthorized Hacks 14 | . 14 . Terminals 14 | . 14 . Track 3 | . 3 . Botnet 3 | . 3 . Detonate 1 | . 1 . Disrupt 1 | . 1 . Operators 1 | . 1 . Skim 5 | . 5 . Fabricators . | . . . Repair Stations . | . . . Recycling Units . | . . . Scanalyzers . | . . . Garrison Access . | . . . Data Cores Recovered . | . . . Used . | . . . Hacking Detections 7 | . 7 . Full Trace Events 1 | . 1 . Feedback Events . | . . . Feedback Blocked . | . . . Robot Schematics Acquired . | . . . Robots Built . | . . . Authchips . | . . . Time . | . . . Total Robot Build Rating . | . . . Part Schematics Acquired . | . . . Parts Built . | . . . Authchips . | . . . Time . | . . . Total Part Build Rating . | . . . Part Studies Acquired . | . . . Parts Repaired . | . . . Time . | . . . Parts Recycled . | . . . Recycled Matter . | . . . Retrieved Matter . | . . . Retrieved Components . | . . . Parts Scanalyzed . | . . . Part Schematics Acquired . | . . . Parts Damaged . | . . . Bothacking | -11 -10 -10 ------------ Run | Yrd Mat Sub Used RIF Installer . | . . . Robots Hacked . | . . . Non-combat . | . . . Combat . | . . . Robot Hacks Applied . | . . . Relay Couplers Released . | . . . Fabnet Peak Effective % . | . . . Robots Rewired . | . . . Allies Hacked . | . . . Hacks Repelled . | . . . Allies | -11 -10 -10 -------- Run | Yrd Mat Sub Total Allies . | . . . Largest Group . | . . . Highest-Rated Group . | . . . Highest-Rated Ally . | . . . Total Orders . | . . . Ally Attacks . | . . . Total Damage . | . . . Kills . | . . . Allies Corrupted . | . . . Allies Melted . | . . . Intel | -11 -10 -10 ------- Run | Yrd Mat Sub Active Infowar (turns) 1204 | . 829 375 Structural 703 | . 328 375 Seismic 948 | . 585 363 Robot Analysis Total 1 | . 1 . Derelict Logs Recovered 2 | . . 2 Drone Launches . | . . . Drone Recoveries . | . . . Exploration | -11 -10 -10 ------------- Run | Yrd Mat Sub Turns Passed 1248 | 31 842 375 Spaces Moved 1672 | 59 1171 442 Core 241 | 59 182 . Treads . | . . . Legs . | . . . Wheels . | . . . Hover . | . . . Flight 1431 | . 989 442 Fastest Speed 37 | 50 37 37 Average Speed 40 | 50 41 37 Slowest Speed 50 | 50 50 37 Overloaded Moves . | . . . Propulsion Burnouts . | . . . Robots Hopped 9 | . 9 . Potential Cave-ins . | . . . Cave-ins Triggered . | . . . Exploration Rate (%) 46 | 3 91 45 Regions Visited 2 Branch Regions 1 Pre-discovered Areas 1 | . 1 . Known Exits Taken 1 | . 1 . Unknown Exits Taken 1 | 1 . . Scrap Searched . | . . . Spaces Dug . | . . . Terrain Destroyed 31 | . 31 . Melee . | . . . Projectile . | . . . AOE 31 | . 31 . Terrain Rammed . | . . . Walls Destroyed . | . . . Machines Disabled . | . . . Actions | -11 -10 -10 --------- Run | Yrd Mat Sub Total 1928 | 59 1319 550 Wait 51 | . 32 19 Move 1652 | 58 1152 442 Hop 9 | . 9 . Pick Up . | . . . Fast Attach 11 | 1 7 3 Attach . | . . . Detach . | . . . Swap 5 | . 3 2 Drop 6 | . 2 4 Fire 160 | . 100 60 Melee . | . . . Ram . | . . . Kick . | . . . Crush . | . . . Escape Stasis . | . . . Rewire . | . . . Trap . | . . . Miscellaneous 34 | . 14 20 Route ------- -11/Scrapyard -10/Materials (discovered 6 exits: *Mat x3 / *Min x2 / *Sub) -10/Subcaves (discovered 3 exits: *Mat x2 / Rec) History --------- Turn | Location | Event 6 | -11/Scrapyard | Discovered new exit (range 16) 32 | -11/Scrapyard | Entered Materials 82 | -10/Materials | Upgraded with Weapon slot (x1) 101 | -10/Materials | Discovered new exit (range 15) 177 | -10/Materials | Discovered new exit (range 12) 208 | -10/Materials | Discovered new exit (range 10) 249 | -10/Materials | Discovered new exit (range 8) 267 | -10/Materials | Identified exit to Materials 267 | -10/Materials | Identified exit to Subcaves 315 | -10/Materials | Core integrity fell below 50% 336 | -10/Materials | Learned Storage trap positions 338 | -10/Materials | Core integrity fell below 20% 357 | -10/Materials | Build established: Hacker-Mutant 369 | -10/Materials | Learned Storage trap positions 374 | -10/Materials | Learned 4 Subcaves zone layouts 421 | -10/Materials | Learned 2 Mines zone layouts 454 | -10/Materials | Identified exit to Mines 768 | -10/Materials | Reached level 2 778 | -10/Materials | Upgraded with Propulsion slot (x1) 782 | -10/Materials | Upgraded with Utility slot (x1) 874 | -10/Materials | Entered Subcaves 874 | -10/Subcaves | Learned Materials emergency access door positions 875 | -10/Subcaves | Approached by a straggling Scientist 875 | -10/Subcaves | Identified exit to Recycling 876 | -10/Subcaves | Reached level 3 985 | -10/Subcaves | Discovered new exit (range 12) 992 | -10/Subcaves | Shifting Twisted Machinery released Mak. Kinetic Plating 995 | -10/Subcaves | Shifting Twisted Machinery released Sub. Monowheel 997 | -10/Subcaves | Identified exit to Materials 1167 | -10/Subcaves | A swath of the cavern ceiling suddenly collapsed 1249 | -10/Subcaves | Destroyed by YX-4B6(R) with Subdweller Laser Last Messages --------------- repair. 01076_ Dropped Sml. Laser. 01076_ Acquired Sml. Laser. 01078_ Dropped Sml. Laser. 01084_ Acquired 15 matter. 01096_ UG-SVJ(R) destroyed. 01105_ 5E-C27(R) suffers critical hit (Destroy). 01105_ Destroyed Sub. Beam Cannon. 01110_ 5E-C27(R) affixes Scrap Shield Fragment to Scrap Shield. 01111_ Acquired 5 matter. 01128_ YQ-WP4(R) destroyed. 01158_ Lgt. Nuclear Core destroyed. 01159_ FI-HM3(R) destroyed. A swath of the cavern ceiling suddenly collapses. 01173_ Acquired Sub. Power Source. 01212_ 8T-CIJ(R) destroyed. 01245_ M8-ACZ(R) suffers critical hit (Burn). 01249_ Destroyed Scrap Shield. Map ----- +----------------------------------------------------+ | | | | | ?????????????????????????????????????????????????? | | ?????????????????????????????????????????????????? | | ?????????????????????????????????????????????????? | | ??????????????????????????????#######????????????? | | ?????????????????????######???########???????????? | | ?????????????????????######??###"""###???????????? | | ?????????????????????##!"/ ""##""""##???????????? | | ?????????????????????#### #" " "##???????????? | | ??????????????????????#"""X" + ""##???????????? | | ???????????????????????"""""""#"" "##???????????? | | ???????????????????????######### " "##???????????? | | ???????????????????????######### "" ##???????????? | | ????????????????????????#######""" ##???????????? | | ???????#######??????????## # ###???????????? | | ?????#########??????????### ! "###???????????? | | #???##### ########??####